[Event "Titled Tuesday Blitz January 31 Early 2023"]
[White "Jovic, Stanoje"]
[Black "Ciuffoletti, Paolo"]
[WhiteFideId "905020"]
[BlackFideId "807630"]
[WhiteElo "2075"]
[BlackElo "2106"]
[Result "1-0"]
[Round "07"]
[TimeControl "180+2"]
[Date "2023.01.31"]
[WhiteClock "0:01:30"]
[BlackClock "0:00:21"]

1. c4 {[%clk 0:03:00]}  g6 {[%clk 0:02:59]} 2. g3 {[%clk 0:03:00]}  Bg7 {[%clk 0:02:59]} 3. Bg2 {[%clk 0:03:01]}  e5 {[%clk 0:02:58]} 4. Nc3 {[%clk 0:03:01]}  d6 {[%clk 0:02:57]} 5. Nf3 {[%clk 0:03:00]}  f5 {[%clk 0:02:57]} 6. d3 {[%clk 0:03:00]}  Nf6 {[%clk 0:02:56]} 7. Rb1 {[%clk 0:02:58]}  a5 {[%clk 0:02:55]} 8. a3 {[%clk 0:02:58]}  O-O {[%clk 0:02:49]} 9. b4 {[%clk 0:02:58]}  axb4 {[%clk 0:02:49]} 10. axb4 {[%clk 0:02:59]}  Nh5 {[%clk 0:02:49]} 11. e4 {[%clk 0:02:53]}  f4 {[%clk 0:02:46]} 12. d4 {[%clk 0:02:45]}  Bg4 {[%clk 0:02:32]} 13. dxe5 {[%clk 0:02:42]}  Bxe5 {[%clk 0:02:27]} 14. Qd5+ {[%clk 0:02:37]}  Kh8 {[%clk 0:01:53]} 15. Nxe5 {[%clk 0:02:34]}  dxe5 {[%clk 0:01:53]} 16. Qxe5+ {[%clk 0:02:32]}  Qf6 {[%clk 0:01:52]} 17. Qxf6+ {[%clk 0:02:29]}  Rxf6 {[%clk 0:01:49]} 18. Nd5 {[%clk 0:02:29]}  Rf7 {[%clk 0:01:47]} 19. gxf4 {[%clk 0:02:13]}  c6 {[%clk 0:01:44]} 20. h3 {[%clk 0:02:05]}  cxd5 {[%clk 0:01:30]} 21. hxg4 {[%clk 0:02:04]}  Nxf4 {[%clk 0:01:30]} 22. Bxf4 {[%clk 0:01:58]}  Rxf4 {[%clk 0:01:29]} 23. cxd5 {[%clk 0:01:55]}  Ra2 {[%clk 0:01:22]} 24. O-O {[%clk 0:01:46]}  Rxg4 {[%clk 0:01:20]} 25. Rbc1 {[%clk 0:01:46]}  Na6 {[%clk 0:01:08]} 26. b5 {[%clk 0:01:44]}  Nb4 {[%clk 0:01:03]} 27. d6 {[%clk 0:01:40]}  Nd3 {[%clk 0:00:22]} 28. d7 {[%clk 0:01:32]}  Ra8 {[%clk 0:00:21]} 29. Rc8+ {[%clk 0:01:30]} 1-0


[Site "https://www.chess.com"]

[Event "Titled Tuesday Blitz January 31 Early 2023"]
[White "Begunov, Konstantin"]
[Black "Corredor Castellanos, Camilo"]
[WhiteFideId "4118510"]
[BlackFideId "4425871"]
[WhiteElo "2325"]
[BlackElo "1957"]
[Result "1-0"]
[Round "07"]
[TimeControl "180+2"]
[Date "2023.01.31"]
[WhiteClock "0:00:11"]
[BlackClock "0:00:08"]

1. d4 {[%clk 0:03:00]}  Nf6 {[%clk 0:02:58]} 2. c4 {[%clk 0:03:01]}  e6 {[%clk 0:02:58]} 3. Nf3 {[%clk 0:03:01]}  d5 {[%clk 0:02:58]} 4. Nc3 {[%clk 0:03:01]}  Bb4 {[%clk 0:02:57]} 5. cxd5 {[%clk 0:03:01]}  exd5 {[%clk 0:02:57]} 6. Qa4+ {[%clk 0:03:01]}  Nc6 {[%clk 0:02:57]} 7. Ne5 {[%clk 0:03:02]}  Bxc3+ {[%clk 0:02:49]} 8. bxc3 {[%clk 0:03:01]}  Bd7 {[%clk 0:02:49]} 9. Nxd7 {[%clk 0:02:55]}  Qxd7 {[%clk 0:02:44]} 10. Ba3 {[%clk 0:02:55]}  Ne4 {[%clk 0:02:38]} 11. e3 {[%clk 0:02:37]}  Nxc3 {[%clk 0:02:28]} 12. Qb3 {[%clk 0:02:36]}  Ne4 {[%clk 0:02:15]} 13. Qxb7 {[%clk 0:02:36]}  Rb8 {[%clk 0:02:13]} 14. Qa6 {[%clk 0:02:36]}  Rb6 {[%clk 0:02:10]} 15. Qa4 {[%clk 0:02:29]}  Nb4 {[%clk 0:01:46]} 16. Qb3 {[%clk 0:01:32]}  a5 {[%clk 0:01:27]} 17. Be2 {[%clk 0:01:16]}  Nxf2 {[%clk 0:01:16]} 18. Kxf2 {[%clk 0:01:10]}  Qf5+ {[%clk 0:01:05]} 19. Kg1 {[%clk 0:00:49]}  O-O {[%clk 0:00:50]} 20. Rf1 {[%clk 0:00:30]}  Qe6 {[%clk 0:00:43]} 21. Bf3 {[%clk 0:00:26]}  a4 {[%clk 0:00:32]} 22. Qc3 {[%clk 0:00:19]}  Nxa2 {[%clk 0:00:32]} 23. Qd2 {[%clk 0:00:19]}  Rfb8 {[%clk 0:00:27]} 24. Re1 {[%clk 0:00:14]}  Nb4 {[%clk 0:00:22]} 25. h4 {[%clk 0:00:12]}  Nc6 {[%clk 0:00:16]} 26. Rh3 {[%clk 0:00:13]}  Rb3 {[%clk 0:00:16]} 27. Bc5 {[%clk 0:00:12]}  Ne7 {[%clk 0:00:14]} 28. Rg3 {[%clk 0:00:12]}  Nf5 {[%clk 0:00:14]} 29. Rg5 {[%clk 0:00:12]}  Rb2 {[%clk 0:00:12]} 30. Qd3 {[%clk 0:00:11]}  g6 {[%clk 0:00:10]} 31. h5 {[%clk 0:00:11]}  R8b3 {[%clk 0:00:10]} 32. Qf1 {[%clk 0:00:10]}  h6 {[%clk 0:00:09]} 33. Rg4 {[%clk 0:00:10]}  g5 {[%clk 0:00:09]} 34. e4 {[%clk 0:00:09]}  Nh4 {[%clk 0:00:06]} 35. exd5 {[%clk 0:00:09]}  Nxf3+ {[%clk 0:00:07]} 36. gxf3 {[%clk 0:00:09]}  Qxd5 {[%clk 0:00:06]} 37. Rge4 {[%clk 0:00:09]}  Qf5 {[%clk 0:00:04]} 38. Re8+ {[%clk 0:00:08]}  Kh7 {[%clk 0:00:05]} 39. R8e5 {[%clk 0:00:08]}  Qf6 {[%clk 0:00:05]} 40. R5e3 {[%clk 0:00:06]}  Rb8 {[%clk 0:00:03]} 41. Be7 {[%clk 0:00:06]}  Qf5 {[%clk 0:00:03]} 42. Qd3 {[%clk 0:00:07]}  Qxd3 {[%clk 0:00:01]} 43. Rxd3 {[%clk 0:00:08]}  R2b3 {[%clk 0:00:02]} 44. Ree3 {[%clk 0:00:07]}  Rb1+ {[%clk 0:00:02]} 45. Kf2 {[%clk 0:00:07]}  Ra8 {[%clk 0:00:03]} 46. Re2 {[%clk 0:00:07]}  Rh1 {[%clk 0:00:03]} 47. Ke3 {[%clk 0:00:06]}  Rxh5 {[%clk 0:00:04]} 48. Kd2 {[%clk 0:00:07]}  Kg6 {[%clk 0:00:04]} 49. Ba3 {[%clk 0:00:07]}  Rh3 {[%clk 0:00:05]} 50. Rc3 {[%clk 0:00:07]}  Rd8 {[%clk 0:00:06]} 51. Rxc7 {[%clk 0:00:07]}  Rxd4+ {[%clk 0:00:06]} 52. Ke1 {[%clk 0:00:07]}  Rf4 {[%clk 0:00:06]} 53. Rc6+ {[%clk 0:00:08]}  f6 {[%clk 0:00:06]} 54. Bc1 {[%clk 0:00:08]}  Rhxf3 {[%clk 0:00:06]} 55. Bxf4 {[%clk 0:00:08]}  Rxf4 {[%clk 0:00:07]} 56. Ra2 {[%clk 0:00:08]}  h5 {[%clk 0:00:07]} 57. Ra6 {[%clk 0:00:09]}  h4 {[%clk 0:00:07]} 58. R6xa4 {[%clk 0:00:10]}  Rf5 {[%clk 0:00:07]} 59. Ke2 {[%clk 0:00:10]}  Re5+ {[%clk 0:00:08]} 60. Kf3 {[%clk 0:00:10]}  Rf5+ {[%clk 0:00:08]} 61. Kg4 {[%clk 0:00:09]}  Rf1 {[%clk 0:00:08]} 62. Re2 {[%clk 0:00:09]}  Rg1+ {[%clk 0:00:09]} 63. Kh3 {[%clk 0:00:09]}  Rg3+ {[%clk 0:00:09]} 64. Kh2 {[%clk 0:00:09]}  Rb3 {[%clk 0:00:10]} 65. Rg2 {[%clk 0:00:09]}  Rf3 {[%clk 0:00:10]} 66. Ra6 {[%clk 0:00:08]}  Rf5 {[%clk 0:00:10]} 67. Kg1 {[%clk 0:00:09]}  Rf4 {[%clk 0:00:11]} 68. Rf2 {[%clk 0:00:10]}  Rg4+ {[%clk 0:00:11]} 69. Kh2 {[%clk 0:00:09]}  Kh5 {[%clk 0:00:09]} 70. Rfxf6 {[%clk 0:00:10]}  Rd4 {[%clk 0:00:09]} 71. Rf2 {[%clk 0:00:09]}  Kg4 {[%clk 0:00:08]} 72. Rg2+ {[%clk 0:00:10]}  Kh5 {[%clk 0:00:08]} 73. Ra5 {[%clk 0:00:11]} 1-0


[Site "https://www.chess.com"]

[Event "Titled Tuesday Blitz January 31 Early 2023"]
[White "Hrbek, Stepan"]
[Black "Balint, Vilmos"]
[WhiteFideId "393479"]
[BlackFideId "718050"]
[WhiteElo "2306"]
[BlackElo "2169"]
[Result "1-0"]
[Round "07"]
[TimeControl "180+2"]
[Date "2023.01.31"]
[WhiteClock "0:01:21"]
[BlackClock "0:01:13"]

1. d4 {[%clk 0:03:00]}  Nf6 {[%clk 0:02:58]} 2. Nf3 {[%clk 0:03:01]}  e6 {[%clk 0:02:58]} 3. Bf4 {[%clk 0:03:00]}  d5 {[%clk 0:02:58]} 4. e3 {[%clk 0:03:00]}  Be7 {[%clk 0:02:58]} 5. Nbd2 {[%clk 0:02:59]}  O-O {[%clk 0:02:59]} 6. Bd3 {[%clk 0:02:59]}  Nbd7 {[%clk 0:02:59]} 7. Ne5 {[%clk 0:02:58]}  c5 {[%clk 0:02:59]} 8. c3 {[%clk 0:02:58]}  Nxe5 {[%clk 0:02:56]} 9. dxe5 {[%clk 0:02:57]}  Nd7 {[%clk 0:02:56]} 10. h4 {[%clk 0:02:46]}  f5 {[%clk 0:02:47]} 11. h5 {[%clk 0:02:37]}  a6 {[%clk 0:02:44]} 12. Rg1 {[%clk 0:02:36]}  b5 {[%clk 0:02:31]} 13. g4 {[%clk 0:02:35]}  Nb6 {[%clk 0:02:06]} 14. gxf5 {[%clk 0:02:33]}  exf5 {[%clk 0:02:07]} 15. Nf3 {[%clk 0:02:25]}  Kh8 {[%clk 0:02:00]} 16. Ng5 {[%clk 0:02:13]}  h6 {[%clk 0:01:57]} 17. Nh3 {[%clk 0:02:11]}  Nc4 {[%clk 0:01:57]} 18. Qf3 {[%clk 0:02:04]}  Nxb2 {[%clk 0:01:55]} 19. Bc2 {[%clk 0:02:03]}  Qa5 {[%clk 0:01:30]} 20. Rg6 {[%clk 0:01:28]}  Qxc3+ {[%clk 0:01:28]} 21. Kf1 {[%clk 0:01:28]}  Nc4 {[%clk 0:01:28]} 22. Qg3 {[%clk 0:01:25]}  Qxa1+ {[%clk 0:01:21]} 23. Kg2 {[%clk 0:01:24]}  Nxe5 {[%clk 0:01:18]} 24. Bxe5 {[%clk 0:01:21]}  f4 {[%clk 0:01:16]} 25. Rxh6+ {[%clk 0:01:20]}  Kg8 {[%clk 0:01:13]} 26. Qxg7# {[%clk 0:01:21]} 1-0


[Site "https://www.chess.com"]

[Event "Titled Tuesday Blitz January 31 Early 2023"]
[White "Ricaurte Lopez, Juan Carlos"]
[Black "Onslow, Alfie"]
[WhiteFideId "3600327"]
[BlackFideId "436976"]
[WhiteElo "2226"]
[BlackElo "2157"]
[Result "0-1"]
[Round "07"]
[TimeControl "180+2"]
[Date "2023.01.31"]
[WhiteClock "0:00:02"]
[BlackClock "0:00:54"]

1. e4 {[%clk 0:02:59]}  c5 {[%clk 0:02:57]} 2. d4 {[%clk 0:02:58]}  cxd4 {[%clk 0:02:53]} 3. c3 {[%clk 0:02:58]}  Nf6 {[%clk 0:02:52]} 4. e5 {[%clk 0:02:57]}  Nd5 {[%clk 0:02:52]} 5. Qxd4 {[%clk 0:02:54]}  e6 {[%clk 0:02:51]} 6. Nf3 {[%clk 0:02:54]}  d6 {[%clk 0:02:51]} 7. exd6 {[%clk 0:02:52]}  Nc6 {[%clk 0:02:50]} 8. Qe4 {[%clk 0:02:49]}  Bxd6 {[%clk 0:02:49]} 9. Bd3 {[%clk 0:02:46]}  Qf6 {[%clk 0:02:29]} 10. O-O {[%clk 0:02:42]}  h6 {[%clk 0:02:27]} 11. Re1 {[%clk 0:02:37]}  Nf4 {[%clk 0:02:26]} 12. Bc2 {[%clk 0:02:25]}  Bd7 {[%clk 0:02:06]} 13. Nbd2 {[%clk 0:02:16]}  O-O-O {[%clk 0:01:50]} 14. Nc4 {[%clk 0:02:13]}  Bc7 {[%clk 0:01:49]} 15. Nce5 {[%clk 0:01:41]}  Nxe5 {[%clk 0:01:45]} 16. Nxe5 {[%clk 0:01:41]}  Bxe5 {[%clk 0:01:32]} 17. Qxe5 {[%clk 0:01:38]}  Qxe5 {[%clk 0:01:27]} 18. Rxe5 {[%clk 0:01:36]}  Nd5 {[%clk 0:01:28]} 19. Bd2 {[%clk 0:01:22]}  Bc6 {[%clk 0:01:28]} 20. Bb3 {[%clk 0:01:13]}  Nf6 {[%clk 0:01:27]} 21. Be3 {[%clk 0:01:06]}  Ng4 {[%clk 0:01:25]} 22. Rc5 {[%clk 0:01:03]}  Nxe3 {[%clk 0:01:25]} 23. fxe3 {[%clk 0:00:59]}  Rd2 {[%clk 0:01:26]} 24. Kf1 {[%clk 0:00:50]}  Kb8 {[%clk 0:01:23]} 25. Rd1 {[%clk 0:00:48]}  Rhd8 {[%clk 0:01:22]} 26. Ke1 {[%clk 0:00:43]}  Rxd1+ {[%clk 0:01:16]} 27. Bxd1 {[%clk 0:00:41]}  Bxg2 {[%clk 0:01:15]} 28. a4 {[%clk 0:00:29]}  Be4 {[%clk 0:01:11]} 29. Be2 {[%clk 0:00:22]}  b6 {[%clk 0:01:09]} 30. Rc4 {[%clk 0:00:21]}  f5 {[%clk 0:01:07]} 31. a5 {[%clk 0:00:17]}  Kb7 {[%clk 0:01:06]} 32. a6+ {[%clk 0:00:14]}  Kb8 {[%clk 0:01:07]} 33. Rd4 {[%clk 0:00:12]}  Rxd4 {[%clk 0:01:06]} 34. cxd4 {[%clk 0:00:08]}  Kc7 {[%clk 0:01:06]} 35. Bb5 {[%clk 0:00:07]}  Kd6 {[%clk 0:01:03]} 36. Kf2 {[%clk 0:00:04]}  g5 {[%clk 0:00:59]} 37. Kg3 {[%clk 0:00:02]}  Bc6 {[%clk 0:00:54]} 0-1


[Site "https://www.chess.com"]

[Event "Titled Tuesday Blitz January 31 Early 2023"]
[White "Koridze, Lile"]
[Black "Winkels, Marcel"]
[WhiteFideId "13612514"]
[BlackFideId "1003887"]
[WhiteElo "2191"]
[BlackElo "1960"]
[Result "1-0"]
[Round "07"]
[TimeControl "180+2"]
[Date "2023.01.31"]
[WhiteClock "0:00:57"]
[BlackClock "0:00:31"]

1. d4 {[%clk 0:03:00]}  Nf6 {[%clk 0:02:58]} 2. c4 {[%clk 0:03:01]}  g6 {[%clk 0:02:58]} 3. Nc3 {[%clk 0:03:01]}  d5 {[%clk 0:02:59]} 4. Nf3 {[%clk 0:03:01]}  Bg7 {[%clk 0:02:57]} 5. Bg5 {[%clk 0:03:00]}  O-O {[%clk 0:02:53]} 6. Bxf6 {[%clk 0:02:59]}  Bxf6 {[%clk 0:02:53]} 7. cxd5 {[%clk 0:03:00]}  c6 {[%clk 0:02:51]} 8. dxc6 {[%clk 0:03:00]}  Nxc6 {[%clk 0:02:50]} 9. e3 {[%clk 0:03:00]}  Qa5 {[%clk 0:02:36]} 10. Be2 {[%clk 0:02:58]}  e5 {[%clk 0:02:34]} 11. O-O {[%clk 0:02:57]}  exd4 {[%clk 0:02:31]} 12. exd4 {[%clk 0:02:53]}  Rd8 {[%clk 0:02:27]} 13. d5 {[%clk 0:02:14]}  Ne5 {[%clk 0:02:00]} 14. Qb3 {[%clk 0:02:09]}  Bf5 {[%clk 0:01:38]} 15. Rad1 {[%clk 0:01:55]}  Nd7 {[%clk 0:01:31]} 16. Nd4 {[%clk 0:01:22]}  Nc5 {[%clk 0:01:29]} 17. Qc4 {[%clk 0:01:19]}  Na6 {[%clk 0:01:04]} 18. Nxf5 {[%clk 0:01:18]}  gxf5 {[%clk 0:01:04]} 19. Bf3 {[%clk 0:01:05]}  Qc5 {[%clk 0:00:56]} 20. Qf4 {[%clk 0:01:05]}  Qc8 {[%clk 0:00:49]} 21. d6 {[%clk 0:01:00]}  Nc5 {[%clk 0:00:44]} 22. Nd5 {[%clk 0:00:58]}  Kg7 {[%clk 0:00:31]} 23. Qg3+ {[%clk 0:00:57]} 1-0


[Site "https://www.chess.com"]

[Event "Titled Tuesday Blitz January 31 Early 2023"]
[White "De Souza, Cristiano Gomes"]
[Black "Hertlein, Irena"]
[WhiteFideId "2151758"]
[BlackFideId "21817618"]
[WhiteElo "2018"]
[BlackElo "1994"]
[Result "0-1"]
[Round "07"]
[TimeControl "180+2"]
[Date "2023.01.31"]
[WhiteClock "0:00:25"]
[BlackClock "0:00:08"]

1. d4 {[%clk 0:03:00]}  Nf6 {[%clk 0:02:59]} 2. c4 {[%clk 0:03:00]}  e6 {[%clk 0:02:59]} 3. Nf3 {[%clk 0:03:00]}  c5 {[%clk 0:02:57]} 4. d5 {[%clk 0:02:59]}  b5 {[%clk 0:02:57]} 5. dxe6 {[%clk 0:02:59]}  fxe6 {[%clk 0:02:57]} 6. cxb5 {[%clk 0:02:59]}  d5 {[%clk 0:02:57]} 7. g3 {[%clk 0:03:00]}  a6 {[%clk 0:02:53]} 8. bxa6 {[%clk 0:02:58]}  Be7 {[%clk 0:02:53]} 9. Bh3 {[%clk 0:02:58]}  O-O {[%clk 0:02:46]} 10. O-O {[%clk 0:02:59]}  Qe8 {[%clk 0:02:38]} 11. Nc3 {[%clk 0:02:48]}  Qh5 {[%clk 0:02:37]} 12. Kg2 {[%clk 0:02:42]}  Nc6 {[%clk 0:02:12]} 13. e4 {[%clk 0:02:37]}  dxe4 {[%clk 0:02:07]} 14. Ng5 {[%clk 0:02:36]}  Qxd1 {[%clk 0:02:00]} 15. Rxd1 {[%clk 0:02:35]}  Nd4 {[%clk 0:02:00]} 16. Be3 {[%clk 0:02:30]}  e5 {[%clk 0:01:55]} 17. Bxc8 {[%clk 0:02:27]}  Rfxc8 {[%clk 0:01:50]} 18. Ngxe4 {[%clk 0:02:27]}  Rxa6 {[%clk 0:01:47]} 19. Nxf6+ {[%clk 0:02:22]}  gxf6 {[%clk 0:01:46]} 20. Nd5 {[%clk 0:02:20]}  Kf7 {[%clk 0:01:43]} 21. Rdc1 {[%clk 0:02:16]}  Bd6 {[%clk 0:01:15]} 22. Bxd4 {[%clk 0:02:10]}  exd4 {[%clk 0:01:14]} 23. Kf3 {[%clk 0:02:05]}  Rca8 {[%clk 0:01:07]} 24. a3 {[%clk 0:01:57]}  Rb8 {[%clk 0:01:05]} 25. Rab1 {[%clk 0:01:45]}  Ke6 {[%clk 0:01:05]} 26. Nf4+ {[%clk 0:01:42]}  Bxf4 {[%clk 0:01:05]} 27. Kxf4 {[%clk 0:01:43]}  Kd5 {[%clk 0:01:01]} 28. Kf5 {[%clk 0:01:41]}  c4 {[%clk 0:00:49]} 29. f4 {[%clk 0:01:40]}  d3 {[%clk 0:00:48]} 30. g4 {[%clk 0:01:34]}  Kd4 {[%clk 0:00:47]} 31. g5 {[%clk 0:01:21]}  Rb5+ {[%clk 0:00:47]} 32. Kg4 {[%clk 0:01:20]}  fxg5 {[%clk 0:00:43]} 33. fxg5 {[%clk 0:01:20]}  Rg6 {[%clk 0:00:41]} 34. h4 {[%clk 0:01:19]}  h6 {[%clk 0:00:41]} 35. Kh5 {[%clk 0:01:19]}  Rgb6 {[%clk 0:00:37]} 36. Rg1 {[%clk 0:01:11]}  hxg5 {[%clk 0:00:32]} 37. hxg5 {[%clk 0:01:09]}  Rxb2 {[%clk 0:00:29]} 38. Rg4+ {[%clk 0:01:08]}  Kc3 {[%clk 0:00:27]} 39. Rc1+ {[%clk 0:01:06]}  Rc2 {[%clk 0:00:24]} 40. Rh1 {[%clk 0:00:54]}  d2 {[%clk 0:00:21]} 41. Rg3+ {[%clk 0:00:53]}  Kb2 {[%clk 0:00:20]} 42. g6 {[%clk 0:00:51]}  Rc1 {[%clk 0:00:18]} 43. Rgg1 {[%clk 0:00:49]}  Rb5+ {[%clk 0:00:09]} 44. Kh6 {[%clk 0:00:48]}  Rb6 {[%clk 0:00:08]} 45. Kh7 {[%clk 0:00:48]}  Rxg1 {[%clk 0:00:07]} 46. Rxg1 {[%clk 0:00:47]}  c3 {[%clk 0:00:06]} 47. g7 {[%clk 0:00:46]}  Rb7 {[%clk 0:00:07]} 48. Kg6 {[%clk 0:00:38]}  Rxg7+ {[%clk 0:00:08]} 49. Kxg7 {[%clk 0:00:38]}  c2 {[%clk 0:00:08]} 50. a4 {[%clk 0:00:34]}  d1=Q {[%clk 0:00:09]} 51. Rg6 {[%clk 0:00:30]}  c1=Q {[%clk 0:00:09]} 52. Rb6+ {[%clk 0:00:28]}  Ka3 {[%clk 0:00:08]} 53. a5 {[%clk 0:00:28]}  Qd7+ {[%clk 0:00:08]} 54. Kf6 {[%clk 0:00:27]}  Qc3+ {[%clk 0:00:08]} 55. Kg5 {[%clk 0:00:25]}  Qxa5+ {[%clk 0:00:08]} 0-1


[Site "https://www.chess.com"]

[Event "Titled Tuesday Blitz January 31 Early 2023"]
[White "Alhadad, Mahmoud"]
[Black "Kiseleva, Arina"]
[WhiteFideId "11501863"]
[BlackFideId "4164989"]
[WhiteElo "1840"]
[BlackElo "1962"]
[Result "1/2-1/2"]
[Round "07"]
[TimeControl "180+2"]
[Date "2023.01.31"]
[WhiteClock "0:00:10"]
[BlackClock "0:00:07"]

1. e4 {[%clk 0:03:00]}  c6 {[%clk 0:02:55]} 2. d4 {[%clk 0:03:00]}  d5 {[%clk 0:02:55]} 3. exd5 {[%clk 0:03:01]}  cxd5 {[%clk 0:02:55]} 4. Bd3 {[%clk 0:03:00]}  Nc6 {[%clk 0:02:55]} 5. c3 {[%clk 0:03:00]}  Nf6 {[%clk 0:02:54]} 6. Bf4 {[%clk 0:02:58]}  Bg4 {[%clk 0:02:52]} 7. Qb3 {[%clk 0:02:57]}  Qb6 {[%clk 0:02:51]} 8. Qxb6 {[%clk 0:02:54]}  axb6 {[%clk 0:02:51]} 9. h3 {[%clk 0:02:54]}  Bh5 {[%clk 0:02:49]} 10. Na3 {[%clk 0:02:54]}  e6 {[%clk 0:02:33]} 11. Nb5 {[%clk 0:02:51]}  Kd7 {[%clk 0:02:32]} 12. Ne2 {[%clk 0:02:34]}  Bg6 {[%clk 0:02:31]} 13. Kd2 {[%clk 0:02:30]}  Bxd3 {[%clk 0:02:21]} 14. Kxd3 {[%clk 0:02:30]}  Ne4 {[%clk 0:02:22]} 15. Rhf1 {[%clk 0:02:27]}  Nd6 {[%clk 0:02:18]} 16. Bxd6 {[%clk 0:02:24]}  Bxd6 {[%clk 0:02:19]} 17. Nxd6 {[%clk 0:02:24]}  Kxd6 {[%clk 0:02:18]} 18. f4 {[%clk 0:02:24]}  g6 {[%clk 0:02:13]} 19. Ng1 {[%clk 0:02:10]}  b5 {[%clk 0:02:09]} 20. a3 {[%clk 0:02:09]}  Na5 {[%clk 0:02:06]} 21. Nf3 {[%clk 0:02:08]}  Nc4 {[%clk 0:02:06]} 22. Rab1 {[%clk 0:01:59]}  f6 {[%clk 0:01:54]} 23. g4 {[%clk 0:01:50]}  Rhf8 {[%clk 0:01:42]} 24. h4 {[%clk 0:01:25]}  e5 {[%clk 0:01:35]} 25. dxe5+ {[%clk 0:01:20]}  fxe5 {[%clk 0:01:36]} 26. fxe5+ {[%clk 0:01:17]}  Nxe5+ {[%clk 0:01:34]} 27. Nxe5 {[%clk 0:01:16]}  Kxe5 {[%clk 0:01:35]} 28. Rbe1+ {[%clk 0:01:13]}  Kd6 {[%clk 0:01:35]} 29. Kd4 {[%clk 0:01:08]}  Ra4+ {[%clk 0:01:32]} 30. b4 {[%clk 0:01:05]}  Rxf1 {[%clk 0:01:26]} 31. Rxf1 {[%clk 0:01:05]}  Ke6 {[%clk 0:01:02]} 32. Re1+ {[%clk 0:00:55]}  Kd6 {[%clk 0:01:00]} 33. Re5 {[%clk 0:00:55]}  Rxa3 {[%clk 0:00:58]} 34. Rxd5+ {[%clk 0:00:55]}  Kc6 {[%clk 0:00:58]} 35. Rc5+ {[%clk 0:00:56]}  Kb6 {[%clk 0:00:57]} 36. Ke5 {[%clk 0:00:53]}  Ra1 {[%clk 0:00:54]} 37. Kf6 {[%clk 0:00:53]}  Rg1 {[%clk 0:00:45]} 38. Kg5 {[%clk 0:00:25]}  Rg3 {[%clk 0:00:30]} 39. Kf4 {[%clk 0:00:21]}  Rh3 {[%clk 0:00:27]} 40. Kg5 {[%clk 0:00:20]}  Rg3 {[%clk 0:00:26]} 41. Rc8 {[%clk 0:00:21]}  h6+ {[%clk 0:00:11]} 42. Kf4 {[%clk 0:00:20]}  Rh3 {[%clk 0:00:09]} 43. Rg8 {[%clk 0:00:09]}  Rxh4 {[%clk 0:00:09]} 44. Rxg6+ {[%clk 0:00:09]}  Kc7 {[%clk 0:00:09]} 45. Kg3 {[%clk 0:00:08]}  Rh1 {[%clk 0:00:09]} 46. Kg2 {[%clk 0:00:08]}  Rc1 {[%clk 0:00:08]} 47. Rxh6 {[%clk 0:00:08]}  Rxc3 {[%clk 0:00:08]} 48. Rh5 {[%clk 0:00:06]}  Kb6 {[%clk 0:00:06]} 49. Rc5 {[%clk 0:00:06]}  Rxc5 {[%clk 0:00:06]} 50. bxc5+ {[%clk 0:00:06]}  Kxc5 {[%clk 0:00:06]} 51. Kf2 {[%clk 0:00:05]}  Kd6 {[%clk 0:00:06]} 52. Ke3 {[%clk 0:00:05]}  Ke5 {[%clk 0:00:06]} 53. Kd3 {[%clk 0:00:06]}  Kf4 {[%clk 0:00:06]} 54. Kc3 {[%clk 0:00:06]}  Kxg4 {[%clk 0:00:07]} 55. Kb4 {[%clk 0:00:07]}  Kf5 {[%clk 0:00:07]} 56. Kxb5 {[%clk 0:00:08]}  Ke6 {[%clk 0:00:07]} 57. Kb6 {[%clk 0:00:09]}  Kd7 {[%clk 0:00:07]} 58. Kxb7 {[%clk 0:00:10]} 1/2-1/2


[Site "https://www.chess.com"]

[Event "Titled Tuesday Blitz January 31 Early 2023"]
[White "Dilmukhametov, Artur"]
[Black "Wartiovaara, Oliver"]
[WhiteFideId "24179922"]
[BlackFideId "513024"]
[WhiteElo "2276"]
[BlackElo "2264"]
[Result "0-1"]
[Round "07"]
[TimeControl "180+2"]
[Date "2023.01.31"]
[WhiteClock "0:01:44"]
[BlackClock "0:02:12"]

1. d4 {[%clk 0:02:59]}  d5 {[%clk 0:02:57]} 2. Nc3 {[%clk 0:02:58]}  c6 {[%clk 0:02:44]} 3. Bf4 {[%clk 0:02:56]}  Nf6 {[%clk 0:02:38]} 4. e3 {[%clk 0:02:56]}  Bg4 {[%clk 0:02:36]} 5. f3 {[%clk 0:02:53]}  Bh5 {[%clk 0:02:36]} 6. g4 {[%clk 0:02:49]}  Bg6 {[%clk 0:02:35]} 7. h4 {[%clk 0:02:49]}  h5 {[%clk 0:02:35]} 8. g5 {[%clk 0:02:42]}  Nfd7 {[%clk 0:02:35]} 9. Qd2 {[%clk 0:02:39]}  e5 {[%clk 0:02:30]} 10. dxe5 {[%clk 0:02:37]}  Qe7 {[%clk 0:02:29]} 11. O-O-O {[%clk 0:02:32]}  Nxe5 {[%clk 0:02:29]} 12. Nge2 {[%clk 0:02:24]}  Nc4 {[%clk 0:02:25]} 13. Qe1 {[%clk 0:02:18]}  Qb4 {[%clk 0:02:15]} 14. Na4 {[%clk 0:01:52]}  Qxa4 {[%clk 0:02:14]} 15. Qc3 {[%clk 0:01:46]}  Qxa2 {[%clk 0:02:13]} 16. b3 {[%clk 0:01:44]}  Ba3+ {[%clk 0:02:12]} 0-1


[Site "https://www.chess.com"]

[Event "Titled Tuesday Blitz January 31 Early 2023"]
[White "Sanal, Vahap"]
[Black "Andreikin, Dmitry"]
[WhiteFideId "6300545"]
[BlackFideId "4158814"]
[WhiteElo "2600"]
[BlackElo "2729"]
[Result "1-0"]
[Round "08"]
[TimeControl "180+2"]
[Date "2023.01.31"]
[WhiteClock "0:00:11"]
[BlackClock "0:00:03"]

1. e4 {[%clk 0:03:00]}  e6 {[%clk 0:02:56]} 2. d4 {[%clk 0:03:01]}  d5 {[%clk 0:02:57]} 3. Nd2 {[%clk 0:03:00]}  c5 {[%clk 0:02:56]} 4. exd5 {[%clk 0:03:01]}  exd5 {[%clk 0:02:52]} 5. Ngf3 {[%clk 0:03:00]}  Nf6 {[%clk 0:02:48]} 6. Bb5+ {[%clk 0:03:00]}  Bd7 {[%clk 0:02:43]} 7. Bxd7+ {[%clk 0:02:59]}  Nbxd7 {[%clk 0:02:42]} 8. O-O {[%clk 0:03:00]}  Be7 {[%clk 0:02:42]} 9. dxc5 {[%clk 0:02:59]}  Nxc5 {[%clk 0:02:42]} 10. Nb3 {[%clk 0:03:00]}  O-O {[%clk 0:02:42]} 11. Nxc5 {[%clk 0:02:56]}  Bxc5 {[%clk 0:02:41]} 12. Bg5 {[%clk 0:02:56]}  Bb6 {[%clk 0:02:33]} 13. c3 {[%clk 0:02:54]}  Re8 {[%clk 0:02:28]} 14. a4 {[%clk 0:02:11]}  a6 {[%clk 0:02:05]} 15. a5 {[%clk 0:02:07]}  Ba7 {[%clk 0:01:45]} 16. Bxf6 {[%clk 0:02:07]}  gxf6 {[%clk 0:01:45]} 17. Ra4 {[%clk 0:02:06]}  Re4 {[%clk 0:01:43]} 18. Re1 {[%clk 0:01:53]}  f5 {[%clk 0:01:42]} 19. Nd4 {[%clk 0:01:43]}  Qg5 {[%clk 0:01:31]} 20. Rb4 {[%clk 0:01:33]}  Rae8 {[%clk 0:01:17]} 21. Rxe4 {[%clk 0:01:33]}  dxe4 {[%clk 0:01:17]} 22. Rxb7 {[%clk 0:01:21]}  Bxd4 {[%clk 0:01:08]} 23. cxd4 {[%clk 0:01:21]}  Rc8 {[%clk 0:00:42]} 24. h4 {[%clk 0:01:21]}  Qh6 {[%clk 0:00:42]} 25. Rb6 {[%clk 0:01:03]}  Qxh4 {[%clk 0:00:34]} 26. Qd2 {[%clk 0:01:00]}  f4 {[%clk 0:00:29]} 27. d5 {[%clk 0:00:54]}  Re8 {[%clk 0:00:16]} 28. Rb3 {[%clk 0:00:27]}  Re5 {[%clk 0:00:13]} 29. Rb8+ {[%clk 0:00:20]}  Kg7 {[%clk 0:00:14]} 30. Qc3 {[%clk 0:00:18]}  f6 {[%clk 0:00:11]} 31. Qc7+ {[%clk 0:00:13]}  Kh6 {[%clk 0:00:11]} 32. Rh8 {[%clk 0:00:11]}  Kg6 {[%clk 0:00:05]} 33. Rg8+ {[%clk 0:00:11]}  Kf5 {[%clk 0:00:03]} 34. Qd7+ {[%clk 0:00:11]} 1-0


[Site "https://www.chess.com"]